[Event "Titled Tuesday Blitz July 18 Early 2023"]
[White "Morefield, Jason"]
[Black "Ibarra Jerez, Jose Carlos"]
[WhiteFideId "30920825"]
[BlackFideId "2226332"]
[WhiteElo "2769"]
[BlackElo "2936"]
[Result "0-1"]
[Round "10"]
[TimeControl "180+2"]
[Date "2023.07.18"]
[WhiteClock "0:00:05"]
[BlackClock "0:00:19"]
[Board "15"]

1. e4 {[%clk 0:03:00]}  c5 {[%clk 0:03:00]} 2. Nf3 {[%clk 0:03:00]}  Nc6 {[%clk 0:03:00]} 3. Bb5 {[%clk 0:02:59]}  e6 {[%clk 0:03:00]} 4. Bxc6 {[%clk 0:03:00]}  bxc6 {[%clk 0:03:00]} 5. O-O {[%clk 0:03:00]}  Ne7 {[%clk 0:03:00]} 6. e5 {[%clk 0:03:00]}  Ng6 {[%clk 0:03:00]} 7. b3 {[%clk 0:03:01]}  Be7 {[%clk 0:03:00]} 8. Bb2 {[%clk 0:02:59]}  O-O {[%clk 0:03:01]} 9. Na3 {[%clk 0:02:53]}  f6 {[%clk 0:03:00]} 10. Nc4 {[%clk 0:02:54]}  fxe5 {[%clk 0:02:54]} 11. Nfxe5 {[%clk 0:02:54]}  Nxe5 {[%clk 0:02:38]} 12. Bxe5 {[%clk 0:02:53]}  d6 {[%clk 0:02:36]} 13. Bb2 {[%clk 0:02:52]}  e5 {[%clk 0:02:36]} 14. d3 {[%clk 0:02:47]}  Be6 {[%clk 0:02:34]} 15. Qd2 {[%clk 0:02:47]}  Bg5 {[%clk 0:02:33]} 16. Qa5 {[%clk 0:02:38]}  Qd7 {[%clk 0:02:33]} 17. Rae1 {[%clk 0:02:34]}  Rf6 {[%clk 0:02:27]} 18. f3 {[%clk 0:02:20]}  Raf8 {[%clk 0:02:21]} 19. Bc1 {[%clk 0:02:17]}  Bh4 {[%clk 0:02:16]} 20. Re2 {[%clk 0:02:17]}  Rg6 {[%clk 0:02:15]} 21. Kh1 {[%clk 0:02:15]}  Bd8 {[%clk 0:01:58]} 22. Qe1 {[%clk 0:02:10]}  Bd5 {[%clk 0:01:42]} 23. a4 {[%clk 0:01:28]}  h5 {[%clk 0:01:40]} 24. Nd2 {[%clk 0:01:23]}  h4 {[%clk 0:01:35]} 25. h3 {[%clk 0:01:20]}  Be6 {[%clk 0:01:33]} 26. Ne4 {[%clk 0:01:19]}  Be7 {[%clk 0:01:31]} 27. Be3 {[%clk 0:01:17]}  Qd8 {[%clk 0:01:16]} 28. Nf2 {[%clk 0:00:51]}  Bg5 {[%clk 0:00:58]} 29. Bxg5 {[%clk 0:00:49]}  Qxg5 {[%clk 0:00:57]} 30. Ne4 {[%clk 0:00:46]}  Qe7 {[%clk 0:00:54]} 31. Ref2 {[%clk 0:00:40]}  Rf4 {[%clk 0:00:53]} 32. Qe3 {[%clk 0:00:33]}  Bf5 {[%clk 0:00:53]} 33. Nd2 {[%clk 0:00:30]}  d5 {[%clk 0:00:48]} 34. Re1 {[%clk 0:00:29]}  Re6 {[%clk 0:00:48]} 35. Rfe2 {[%clk 0:00:24]}  Qf6 {[%clk 0:00:46]} 36. Qxc5 {[%clk 0:00:22]}  Re7 {[%clk 0:00:40]} 37. Qe3 {[%clk 0:00:15]}  Bg6 {[%clk 0:00:37]} 38. a5 {[%clk 0:00:10]}  Bh5 {[%clk 0:00:36]} 39. Kh2 {[%clk 0:00:09]}  Kh7 {[%clk 0:00:35]} 40. b4 {[%clk 0:00:08]}  Rxb4 {[%clk 0:00:34]} 41. Nb3 {[%clk 0:00:06]}  Rf4 {[%clk 0:00:26]} 42. Rf2 {[%clk 0:00:03]}  e4 {[%clk 0:00:25]} 43. dxe4 {[%clk 0:00:03]}  dxe4 {[%clk 0:00:26]} 44. Rfe2 {[%clk 0:00:01]}  Bxf3 {[%clk 0:00:22]} 45. gxf3 {[%clk 0:00:01]}  Rxf3 {[%clk 0:00:23]} 46. Qd4 {[%clk 0:00:01]}  Qf4+ {[%clk 0:00:23]} 47. Kg2 {[%clk 0:00:01]}  Rg3+ {[%clk 0:00:21]} 48. Kh2 {[%clk 0:00:01]}  Rd3+ {[%clk 0:00:20]} 49. Kh1 {[%clk 0:00:02]}  Rxd4 {[%clk 0:00:19]} 50. Nxd4 {[%clk 0:00:03]}  e3 {[%clk 0:00:17]} 51. c3 {[%clk 0:00:03]}  c5 {[%clk 0:00:17]} 52. Nc2 {[%clk 0:00:03]}  Qf3+ {[%clk 0:00:18]} 53. Kh2 {[%clk 0:00:04]}  Qg3+ {[%clk 0:00:18]} 54. Kh1 {[%clk 0:00:05]}  Qxh3+ {[%clk 0:00:19]} 55. Rh2 {[%clk 0:00:05]}  Qf3+ {[%clk 0:00:19]} 56. Kg1 {[%clk 0:00:06]}  Re6 {[%clk 0:00:18]} 57. Ree2 {[%clk 0:00:05]}  Rg6+ {[%clk 0:00:18]} 58. Rhg2 {[%clk 0:00:06]}  Rxg2+ {[%clk 0:00:19]} 59. Rxg2 {[%clk 0:00:07]}  h3 {[%clk 0:00:18]} 60. Rh2 {[%clk 0:00:04]}  Qd1+ {[%clk 0:00:18]} 61. Ne1 {[%clk 0:00:05]}  Qxe1# {[%clk 0:00:19]} 0-1


[Site "https://www.chess.com"]

[Event "Titled Tuesday Blitz July 18 Early 2023"]
[White "Weetik, Vjacheslav"]
[Black "Tasdogen, Dincer"]
[WhiteFideId "4153472"]
[BlackFideId "6367097"]
[WhiteElo "2762"]
[BlackElo "2936"]
[Result "0-1"]
[Round "10"]
[TimeControl "180+2"]
[Date "2023.07.18"]
[WhiteClock "0:00:00"]
[BlackClock "0:00:16"]
[Board "16"]

1. d4 {[%clk 0:02:59]}  g6 {[%clk 0:03:00]} 2. e4 {[%clk 0:02:59]}  Bg7 {[%clk 0:03:01]} 3. Nf3 {[%clk 0:02:59]}  c6 {[%clk 0:03:01]} 4. d5 {[%clk 0:02:58]}  d6 {[%clk 0:03:01]} 5. c4 {[%clk 0:02:55]}  Nf6 {[%clk 0:03:01]} 6. Nc3 {[%clk 0:02:55]}  O-O {[%clk 0:03:02]} 7. Be2 {[%clk 0:02:53]}  e5 {[%clk 0:02:57]} 8. O-O {[%clk 0:02:45]}  cxd5 {[%clk 0:02:57]} 9. cxd5 {[%clk 0:02:45]}  a6 {[%clk 0:02:58]} 10. a4 {[%clk 0:02:39]}  Nbd7 {[%clk 0:02:58]} 11. Be3 {[%clk 0:02:32]}  Ng4 {[%clk 0:02:58]} 12. Bg5 {[%clk 0:02:32]}  f6 {[%clk 0:02:48]} 13. Bd2 {[%clk 0:02:31]}  Nh6 {[%clk 0:02:40]} 14. a5 {[%clk 0:02:20]}  Nf7 {[%clk 0:02:39]} 15. Na4 {[%clk 0:02:13]}  f5 {[%clk 0:02:39]} 16. Bb4 {[%clk 0:02:06]}  fxe4 {[%clk 0:02:02]} 17. Nd2 {[%clk 0:02:05]}  Nf6 {[%clk 0:02:03]} 18. Nb6 {[%clk 0:02:02]}  Rb8 {[%clk 0:02:03]} 19. Rc1 {[%clk 0:01:34]}  Bf5 {[%clk 0:02:03]} 20. Ndc4 {[%clk 0:01:25]}  Qe7 {[%clk 0:01:47]} 21. Qb3 {[%clk 0:01:25]}  Bh6 {[%clk 0:01:44]} 22. Rc3 {[%clk 0:01:22]}  Rbd8 {[%clk 0:01:38]} 23. Ne3 {[%clk 0:01:06]}  Ne8 {[%clk 0:01:16]} 24. Rfc1 {[%clk 0:00:51]}  Bf4 {[%clk 0:01:16]} 25. Qd1 {[%clk 0:00:23]}  Qf6 {[%clk 0:01:08]} 26. R1c2 {[%clk 0:00:18]}  Bh6 {[%clk 0:00:48]} 27. Ng4 {[%clk 0:00:17]}  Bxg4 {[%clk 0:00:40]} 28. Bxg4 {[%clk 0:00:18]}  Ng5 {[%clk 0:00:41]} 29. Nd7 {[%clk 0:00:13]}  Rxd7 {[%clk 0:00:40]} 30. Bxd7 {[%clk 0:00:14]}  Ng7 {[%clk 0:00:31]} 31. Rc8 {[%clk 0:00:13]}  Nh5 {[%clk 0:00:25]} 32. g3 {[%clk 0:00:07]}  Nf3+ {[%clk 0:00:23]} 33. Kg2 {[%clk 0:00:06]}  Nd4 {[%clk 0:00:24]} 34. Rxf8+ {[%clk 0:00:03]}  Bxf8 {[%clk 0:00:25]} 35. Rc8 {[%clk 0:00:03]}  Kg7 {[%clk 0:00:22]} 36. Bg4 {[%clk 0:00:04]}  Qf7 {[%clk 0:00:16]} 37. Bc3 {[%clk 0:00:02]}  Qxd5 {[%clk 0:00:13]} 38. Bxh5 {[%clk 0:00:01]}  gxh5 {[%clk 0:00:14]} 39. Qxh5 {[%clk 0:00:01]}  e3+ {[%clk 0:00:15]} 40. Kh3 {[%clk 0:00:01]}  Qe6+ {[%clk 0:00:15]} 41. Qg4+ {[%clk 0:00:02]}  Qxg4+ {[%clk 0:00:15]} 42. Kxg4 {[%clk 0:00:02]}  exf2 {[%clk 0:00:16]} 43. Bxd4 {[%clk 0:00:03]}  f1=Q {[%clk 0:00:16]} 44. Rc7+ {[%clk 0:00:00]}  Kg6 {[%clk 0:00:16]} 0-1


[Site "https://www.chess.com"]

[Event "Titled Tuesday Blitz July 18 Early 2023"]
[White "Leiva, Gianmarco"]
[Black "Zhigalko, Sergei"]
[WhiteFideId "3804399"]
[BlackFideId "13502956"]
[WhiteElo "2746"]
[BlackElo "2887"]
[Result "1/2-1/2"]
[Round "10"]
[TimeControl "180+2"]
[Date "2023.07.18"]
[WhiteClock "0:00:09"]
[BlackClock "0:00:07"]
[Board "17"]

1. e4 {[%clk 0:02:52]}  c5 {[%clk 0:02:59]} 2. Nf3 {[%clk 0:02:47]}  Nc6 {[%clk 0:02:59]} 3. Bb5 {[%clk 0:02:46]}  Nf6 {[%clk 0:02:59]} 4. Nc3 {[%clk 0:02:42]}  Qc7 {[%clk 0:02:59]} 5. O-O {[%clk 0:02:41]}  Nd4 {[%clk 0:03:00]} 6. Re1 {[%clk 0:02:42]}  a6 {[%clk 0:03:00]} 7. Bf1 {[%clk 0:02:39]}  e5 {[%clk 0:02:59]} 8. h3 {[%clk 0:02:03]}  Be7 {[%clk 0:02:55]} 9. a4 {[%clk 0:02:00]}  O-O {[%clk 0:02:54]} 10. Bc4 {[%clk 0:02:00]}  Rb8 {[%clk 0:02:43]} 11. d3 {[%clk 0:01:58]}  d6 {[%clk 0:02:38]} 12. Bg5 {[%clk 0:01:52]}  Be6 {[%clk 0:02:36]} 13. Bxf6 {[%clk 0:01:51]}  Bxf6 {[%clk 0:02:37]} 14. Nd5 {[%clk 0:01:52]}  Qd8 {[%clk 0:02:33]} 15. a5 {[%clk 0:01:39]}  Bg5 {[%clk 0:02:12]} 16. Nxd4 {[%clk 0:01:29]}  cxd4 {[%clk 0:02:10]} 17. c3 {[%clk 0:01:30]}  dxc3 {[%clk 0:02:05]} 18. bxc3 {[%clk 0:01:30]}  Kh8 {[%clk 0:02:06]} 19. Re2 {[%clk 0:00:58]}  f5 {[%clk 0:01:55]} 20. Nb6 {[%clk 0:00:59]}  Bd7 {[%clk 0:01:38]} 21. Nxd7 {[%clk 0:00:46]}  Qxd7 {[%clk 0:01:39]} 22. Rb2 {[%clk 0:00:46]}  Qc7 {[%clk 0:01:19]} 23. exf5 {[%clk 0:00:42]}  Rxf5 {[%clk 0:00:57]} 24. Qg4 {[%clk 0:00:42]}  Rbf8 {[%clk 0:00:57]} 25. Rab1 {[%clk 0:00:42]}  Qxa5 {[%clk 0:00:38]} 26. Rxb7 {[%clk 0:00:42]}  d5 {[%clk 0:00:38]} 27. Rd7 {[%clk 0:00:20]}  h5 {[%clk 0:00:28]} 28. Rxd5 {[%clk 0:00:08]}  Qxc3 {[%clk 0:00:10]} 29. Qxh5+ {[%clk 0:00:05]}  Bh6 {[%clk 0:00:10]} 30. Qg4 {[%clk 0:00:02]}  Rxf2 {[%clk 0:00:10]} 31. Rc5 {[%clk 0:00:02]}  Qd2 {[%clk 0:00:03]} 32. Rc8 {[%clk 0:00:02]}  Rxg2+ {[%clk 0:00:02]} 33. Qxg2 {[%clk 0:00:02]}  Qxg2+ {[%clk 0:00:02]} 34. Kxg2 {[%clk 0:00:03]}  Rxc8 {[%clk 0:00:02]} 35. Ra1 {[%clk 0:00:03]}  Rc6 {[%clk 0:00:01]} 36. Rxa6 {[%clk 0:00:03]}  Rxa6 {[%clk 0:00:02]} 37. Bxa6 {[%clk 0:00:04]}  Be3 {[%clk 0:00:02]} 38. Kf3 {[%clk 0:00:05]}  Bd4 {[%clk 0:00:03]} 39. Ke4 {[%clk 0:00:05]}  Kh7 {[%clk 0:00:04]} 40. Bc8 {[%clk 0:00:05]}  Kh6 {[%clk 0:00:05]} 41. Bg4 {[%clk 0:00:06]}  Kg5 {[%clk 0:00:05]} 42. Kf3 {[%clk 0:00:06]}  Kh4 {[%clk 0:00:06]} 43. Ke4 {[%clk 0:00:07]}  Kg5 {[%clk 0:00:06]} 44. Kf3 {[%clk 0:00:08]}  Kh4 {[%clk 0:00:07]} 45. Ke4 {[%clk 0:00:09]}  Kg5 {[%clk 0:00:07]} 1/2-1/2


[Site "https://www.chess.com"]

[Event "Titled Tuesday Blitz July 18 Early 2023"]
[White "Fridman, Daniel"]
[Black "Tica, Sven"]
[WhiteFideId "11600454"]
[BlackFideId "14526948"]
[WhiteElo "2877"]
[BlackElo "2731"]
[Result "0-1"]
[Round "10"]
[TimeControl "180+2"]
[Date "2023.07.18"]
[WhiteClock "0:00:00"]
[BlackClock "0:01:18"]
[Board "18"]

1. d4 {[%clk 0:03:00]}  g6 {[%clk 0:03:00]} 2. Nf3 {[%clk 0:02:59]}  Bg7 {[%clk 0:03:00]} 3. c4 {[%clk 0:03:00]}  d6 {[%clk 0:03:00]} 4. e4 {[%clk 0:03:00]}  Nd7 {[%clk 0:03:00]} 5. Nc3 {[%clk 0:03:00]}  e5 {[%clk 0:03:00]} 6. Be2 {[%clk 0:02:59]}  Ne7 {[%clk 0:03:00]} 7. O-O {[%clk 0:02:58]}  h6 {[%clk 0:02:57]} 8. Be3 {[%clk 0:02:56]}  f5 {[%clk 0:02:57]} 9. dxe5 {[%clk 0:02:56]}  Nxe5 {[%clk 0:02:54]} 10. Nxe5 {[%clk 0:02:55]}  Bxe5 {[%clk 0:02:55]} 11. f4 {[%clk 0:02:51]}  Bg7 {[%clk 0:02:53]} 12. e5 {[%clk 0:02:47]}  dxe5 {[%clk 0:02:37]} 13. Qxd8+ {[%clk 0:02:48]}  Kxd8 {[%clk 0:02:38]} 14. Rad1+ {[%clk 0:02:47]}  Bd7 {[%clk 0:02:38]} 15. Nd5 {[%clk 0:02:36]}  Nxd5 {[%clk 0:02:33]} 16. Rxd5 {[%clk 0:02:36]}  Kc8 {[%clk 0:02:09]} 17. fxe5 {[%clk 0:02:28]}  Bc6 {[%clk 0:02:09]} 18. Rd2 {[%clk 0:02:14]}  Bxe5 {[%clk 0:02:06]} 19. Bd4 {[%clk 0:02:14]}  Rd8 {[%clk 0:02:02]} 20. Rfd1 {[%clk 0:02:13]}  Bxd4+ {[%clk 0:02:00]} 21. Rxd4 {[%clk 0:02:14]}  Rxd4 {[%clk 0:02:01]} 22. Rxd4 {[%clk 0:02:15]}  b6 {[%clk 0:01:56]} 23. Bf3 {[%clk 0:01:28]}  Kb7 {[%clk 0:01:45]} 24. Rd7 {[%clk 0:01:28]}  Re8 {[%clk 0:01:38]} 25. Kf2 {[%clk 0:01:27]}  Bxf3 {[%clk 0:01:37]} 26. gxf3 {[%clk 0:01:28]}  Kc6 {[%clk 0:01:37]} 27. Rh7 {[%clk 0:01:27]}  h5 {[%clk 0:01:37]} 28. Rg7 {[%clk 0:01:27]}  Re6 {[%clk 0:01:36]} 29. b4 {[%clk 0:01:24]}  a5 {[%clk 0:01:36]} 30. a3 {[%clk 0:01:24]}  axb4 {[%clk 0:01:36]} 31. axb4 {[%clk 0:01:25]}  Kd6 {[%clk 0:01:29]} 32. h4 {[%clk 0:01:15]}  c5 {[%clk 0:01:19]} 33. b5 {[%clk 0:01:15]}  Ke5 {[%clk 0:01:19]} 34. Ke3 {[%clk 0:00:00]}  Kf6+ {[%clk 0:01:18]} 0-1


[Site "https://www.chess.com"]

[Event "Titled Tuesday Blitz July 18 Early 2023"]
[White "Haug, Havard"]
[Black "Timofeev, Artyom"]
[WhiteFideId "1547887"]
[BlackFideId "4140419"]
[WhiteElo "2673"]
[BlackElo "2851"]
[Result "0-1"]
[Round "10"]
[TimeControl "180+2"]
[Date "2023.07.18"]
[WhiteClock "0:00:05"]
[BlackClock "0:00:48"]
[Board "19"]

1. e4 {[%clk 0:03:00]}  d6 {[%clk 0:02:59]} 2. d4 {[%clk 0:03:00]}  Nf6 {[%clk 0:03:00]} 3. Nc3 {[%clk 0:03:00]}  g6 {[%clk 0:03:00]} 4. Bc4 {[%clk 0:02:59]}  Bg7 {[%clk 0:02:59]} 5. Qe2 {[%clk 0:02:59]}  e5 {[%clk 0:02:57]} 6. dxe5 {[%clk 0:02:58]}  dxe5 {[%clk 0:02:57]} 7. Nf3 {[%clk 0:02:58]}  Nc6 {[%clk 0:02:55]} 8. Bg5 {[%clk 0:02:57]}  O-O {[%clk 0:02:46]} 9. O-O {[%clk 0:02:50]}  h6 {[%clk 0:02:43]} 10. Bh4 {[%clk 0:02:46]}  Nd4 {[%clk 0:02:26]} 11. Nxd4 {[%clk 0:02:44]}  Qxd4 {[%clk 0:02:22]} 12. Rad1 {[%clk 0:02:41]}  Qb6 {[%clk 0:02:17]} 13. Bxf6 {[%clk 0:02:33]}  Qxf6 {[%clk 0:02:11]} 14. Nd5 {[%clk 0:02:32]}  Qd6 {[%clk 0:02:11]} 15. Qf3 {[%clk 0:02:24]}  h5 {[%clk 0:01:58]} 16. h3 {[%clk 0:02:22]}  Rb8 {[%clk 0:01:51]} 17. Rd2 {[%clk 0:02:08]}  c6 {[%clk 0:01:46]} 18. Rfd1 {[%clk 0:01:28]}  cxd5 {[%clk 0:01:46]} 19. Rxd5 {[%clk 0:01:28]}  Qe7 {[%clk 0:01:46]} 20. Rd6 {[%clk 0:01:18]}  Kh7 {[%clk 0:01:42]} 21. Qg3 {[%clk 0:01:13]}  b5 {[%clk 0:01:36]} 22. Bb3 {[%clk 0:01:12]}  Rb6 {[%clk 0:01:36]} 23. Rxb6 {[%clk 0:01:06]}  axb6 {[%clk 0:01:36]} 24. Qe3 {[%clk 0:01:07]}  Qc5 {[%clk 0:01:35]} 25. Rd5 {[%clk 0:01:03]}  Qxe3 {[%clk 0:01:33]} 26. fxe3 {[%clk 0:01:04]}  Ba6 {[%clk 0:01:13]} 27. Rd7 {[%clk 0:01:00]}  f5 {[%clk 0:01:09]} 28. exf5 {[%clk 0:00:54]}  Rxf5 {[%clk 0:01:09]} 29. Be6 {[%clk 0:00:51]}  Rf6 {[%clk 0:01:01]} 30. Re7 {[%clk 0:00:50]}  Bb7 {[%clk 0:00:58]} 31. Rxb7 {[%clk 0:00:39]}  Rxe6 {[%clk 0:00:58]} 32. e4 {[%clk 0:00:39]}  Rc6 {[%clk 0:00:58]} 33. c3 {[%clk 0:00:39]}  Kh6 {[%clk 0:00:59]} 34. Kf2 {[%clk 0:00:38]}  Bf8 {[%clk 0:00:59]} 35. Ke2 {[%clk 0:00:38]}  b4 {[%clk 0:00:59]} 36. Kd3 {[%clk 0:00:30]}  bxc3 {[%clk 0:00:59]} 37. bxc3 {[%clk 0:00:31]}  Bc5 {[%clk 0:00:59]} 38. Rd7 {[%clk 0:00:24]}  Rf6 {[%clk 0:00:59]} 39. Rd5 {[%clk 0:00:21]}  Rf2 {[%clk 0:00:56]} 40. a4 {[%clk 0:00:21]}  Ra2 {[%clk 0:00:52]} 41. Rxe5 {[%clk 0:00:21]}  Rxa4 {[%clk 0:00:52]} 42. g4 {[%clk 0:00:21]}  h4 {[%clk 0:00:51]} 43. Re8 {[%clk 0:00:17]}  Kg5 {[%clk 0:00:50]} 44. e5 {[%clk 0:00:15]}  Ra1 {[%clk 0:00:50]} 45. Ke4 {[%clk 0:00:15]}  Re1+ {[%clk 0:00:49]} 46. Kd5 {[%clk 0:00:15]}  Re3 {[%clk 0:00:49]} 47. e6 {[%clk 0:00:15]}  Rxh3 {[%clk 0:00:49]} 48. Ra8 {[%clk 0:00:12]}  Re3 {[%clk 0:00:49]} 49. Ra1 {[%clk 0:00:05]}  h3 {[%clk 0:00:48]} 0-1


[Site "https://www.chess.com"]

[Event "Titled Tuesday Blitz July 18 Early 2023"]
[White "Karttunen, Mika"]
[Black "Aravindh, Chithambaram VR."]
[WhiteFideId "502081"]
[BlackFideId "5072786"]
[WhiteElo "2638"]
[BlackElo "2935"]
[Result "1-0"]
[Round "10"]
[TimeControl "180+2"]
[Date "2023.07.18"]
[WhiteClock "0:00:26"]
[BlackClock "0:01:50"]
[Board "21"]

1. e4 {[%clk 0:03:00]}  c6 {[%clk 0:02:59]} 2. d4 {[%clk 0:03:00]}  d5 {[%clk 0:03:00]} 3. exd5 {[%clk 0:03:01]}  cxd5 {[%clk 0:03:01]} 4. Bd3 {[%clk 0:03:01]}  Nc6 {[%clk 0:03:01]} 5. c3 {[%clk 0:03:01]}  g6 {[%clk 0:03:02]} 6. h3 {[%clk 0:03:01]}  Bf5 {[%clk 0:03:02]} 7. Be2 {[%clk 0:03:01]}  Nf6 {[%clk 0:03:02]} 8. Nf3 {[%clk 0:03:01]}  Bg7 {[%clk 0:03:03]} 9. O-O {[%clk 0:03:01]}  O-O {[%clk 0:03:03]} 10. Be3 {[%clk 0:03:01]}  Ne4 {[%clk 0:02:56]} 11. Nbd2 {[%clk 0:03:01]}  e6 {[%clk 0:02:54]} 12. Nxe4 {[%clk 0:03:00]}  Bxe4 {[%clk 0:02:53]} 13. Nd2 {[%clk 0:02:56]}  f5 {[%clk 0:02:48]} 14. f3 {[%clk 0:02:44]}  f4 {[%clk 0:02:48]} 15. Bf2 {[%clk 0:02:45]}  Bf5 {[%clk 0:02:48]} 16. Nb3 {[%clk 0:02:37]}  e5 {[%clk 0:02:36]} 17. dxe5 {[%clk 0:02:28]}  Nxe5 {[%clk 0:02:37]} 18. Nd4 {[%clk 0:02:15]}  h5 {[%clk 0:02:29]} 19. Qb3 {[%clk 0:02:07]}  Kh7 {[%clk 0:02:26]} 20. Rad1 {[%clk 0:02:05]}  Bd7 {[%clk 0:02:15]} 21. Qxd5 {[%clk 0:01:51]}  Qf6 {[%clk 0:02:15]} 22. Rfe1 {[%clk 0:01:37]}  Rfe8 {[%clk 0:02:13]} 23. Bb5 {[%clk 0:01:19]}  Rad8 {[%clk 0:02:13]} 24. Qxb7 {[%clk 0:01:13]}  Rb8 {[%clk 0:02:11]} 25. Qd5 {[%clk 0:00:52]}  Bxb5 {[%clk 0:02:12]} 26. Nxb5 {[%clk 0:00:52]}  Red8 {[%clk 0:02:12]} 27. Nd6 {[%clk 0:00:45]}  Rxb2 {[%clk 0:02:11]} 28. Ne4 {[%clk 0:00:40]}  Rxd5 {[%clk 0:01:57]} 29. Nxf6+ {[%clk 0:00:40]}  Bxf6 {[%clk 0:01:58]} 30. Rxd5 {[%clk 0:00:40]}  Nc4 {[%clk 0:01:57]} 31. Rd7+ {[%clk 0:00:38]}  Kh6 {[%clk 0:01:57]} 32. Bd4 {[%clk 0:00:38]}  Bh4 {[%clk 0:01:53]} 33. Bg7+ {[%clk 0:00:32]}  Kh7 {[%clk 0:01:52]} 34. Bf6+ {[%clk 0:00:32]}  Kh6 {[%clk 0:01:52]} 35. Bxh4 {[%clk 0:00:32]}  Ne3 {[%clk 0:01:53]} 36. Bf2 {[%clk 0:00:31]}  Nf5 {[%clk 0:01:53]} 37. Rxa7 {[%clk 0:00:30]}  h4 {[%clk 0:01:53]} 38. a4 {[%clk 0:00:28]}  Rc2 {[%clk 0:01:53]} 39. a5 {[%clk 0:00:27]}  Rxc3 {[%clk 0:01:53]} 40. a6 {[%clk 0:00:28]}  Ra3 {[%clk 0:01:53]} 41. Ra8 {[%clk 0:00:28]}  Kg5 {[%clk 0:01:54]} 42. a7 {[%clk 0:00:28]}  Ne3 {[%clk 0:01:55]} 43. Rb8 {[%clk 0:00:27]}  Rxa7 {[%clk 0:01:54]} 44. Rxe3 {[%clk 0:00:26]}  Ra2 {[%clk 0:01:50]} 45. Re1 {[%clk 0:00:26]}  Rc2 {[%clk 0:01:50]} 46. Rb5+ {[%clk 0:00:25]}  Kh6 {[%clk 0:01:50]} 47. Bxh4 {[%clk 0:00:25]}  Rc7 {[%clk 0:01:49]} 48. Bg5+ {[%clk 0:00:25]}  Kh7 {[%clk 0:01:49]} 49. Bxf4 {[%clk 0:00:25]}  Rf7 {[%clk 0:01:49]} 50. Bg5 {[%clk 0:00:25]}  Rd7 {[%clk 0:01:49]} 51. Re7+ {[%clk 0:00:26]}  Rxe7 {[%clk 0:01:49]} 52. Bxe7 {[%clk 0:00:26]}  Kh6 {[%clk 0:01:50]} 53. Bg5+ {[%clk 0:00:27]}  Kh5 {[%clk 0:01:50]} 54. g4# {[%clk 0:00:26]} 1-0


[Site "https://www.chess.com"]

[Event "Titled Tuesday Blitz July 18 Early 2023"]
[White "Demidov, Mikhail"]
[Black "Shuvalova, Polina"]
[WhiteFideId "4197143"]
[BlackFideId "24171760"]
[WhiteElo "2908"]
[BlackElo "2669"]
[Result "1-0"]
[Round "10"]
[TimeControl "180+2"]
[Date "2023.07.18"]
[WhiteClock "0:00:05"]
[BlackClock "0:00:00"]
[Board "23"]

1. e4 {[%clk 0:03:00]}  c6 {[%clk 0:02:59]} 2. c4 {[%clk 0:02:51]}  d5 {[%clk 0:02:58]} 3. cxd5 {[%clk 0:02:51]}  cxd5 {[%clk 0:02:55]} 4. exd5 {[%clk 0:02:52]}  Nf6 {[%clk 0:02:54]} 5. Nc3 {[%clk 0:02:51]}  g6 {[%clk 0:02:52]} 6. Bc4 {[%clk 0:02:50]}  Bg7 {[%clk 0:02:52]} 7. Nf3 {[%clk 0:02:51]}  O-O {[%clk 0:02:50]} 8. O-O {[%clk 0:02:51]}  a6 {[%clk 0:02:49]} 9. a4 {[%clk 0:02:51]}  Nbd7 {[%clk 0:02:41]} 10. d3 {[%clk 0:02:45]}  b6 {[%clk 0:02:38]} 11. Re1 {[%clk 0:02:44]}  Bb7 {[%clk 0:02:36]} 12. Bf4 {[%clk 0:02:31]}  Rc8 {[%clk 0:02:25]} 13. h3 {[%clk 0:02:28]}  b5 {[%clk 0:02:17]} 14. axb5 {[%clk 0:02:26]}  axb5 {[%clk 0:02:18]} 15. Bxb5 {[%clk 0:02:07]}  Nxd5 {[%clk 0:02:12]} 16. Nxd5 {[%clk 0:02:03]}  Bxd5 {[%clk 0:02:13]} 17. Ra7 {[%clk 0:01:54]}  Bc6 {[%clk 0:01:40]} 18. Bxc6 {[%clk 0:01:46]}  Rxc6 {[%clk 0:01:40]} 19. Qa4 {[%clk 0:01:46]}  Qc8 {[%clk 0:01:12]} 20. Rxe7 {[%clk 0:01:44]}  Nc5 {[%clk 0:01:08]} 21. Qb5 {[%clk 0:01:43]}  Ne6 {[%clk 0:00:49]} 22. Be3 {[%clk 0:01:42]}  Rd6 {[%clk 0:00:41]} 23. b4 {[%clk 0:01:07]}  h5 {[%clk 0:00:31]} 24. Red7 {[%clk 0:00:58]}  Rxd7 {[%clk 0:00:29]} 25. Rxd7 {[%clk 0:00:59]}  Qc2 {[%clk 0:00:25]} 26. d4 {[%clk 0:00:55]}  Ra8 {[%clk 0:00:16]} 27. Kh2 {[%clk 0:00:25]}  Nf8 {[%clk 0:00:15]} 28. Rb7 {[%clk 0:00:22]}  Qe4 {[%clk 0:00:15]} 29. Rb8 {[%clk 0:00:15]}  Ra1 {[%clk 0:00:14]} 30. Qe8 {[%clk 0:00:10]}  Qb1 {[%clk 0:00:14]} 31. Ng5 {[%clk 0:00:10]}  Qf5 {[%clk 0:00:06]} 32. h4 {[%clk 0:00:11]}  Rb1 {[%clk 0:00:04]} 33. Qe4 {[%clk 0:00:11]}  Qf6 {[%clk 0:00:04]} 34. Qxb1 {[%clk 0:00:10]}  Qd6+ {[%clk 0:00:04]} 35. g3 {[%clk 0:00:10]}  Qxb8 {[%clk 0:00:05]} 36. b5 {[%clk 0:00:11]}  Nd7 {[%clk 0:00:05]} 37. Qb3 {[%clk 0:00:10]}  Qf8 {[%clk 0:00:03]} 38. b6 {[%clk 0:00:11]}  Bf6 {[%clk 0:00:04]} 39. Ne4 {[%clk 0:00:11]}  Be7 {[%clk 0:00:04]} 40. Nc5 {[%clk 0:00:10]}  Nb8 {[%clk 0:00:03]} 41. b7 {[%clk 0:00:10]}  Qd8 {[%clk 0:00:03]} 42. Bf4 {[%clk 0:00:09]}  Bd6 {[%clk 0:00:03]} 43. Bxd6 {[%clk 0:00:07]}  Qxd6 {[%clk 0:00:04]} 44. Qe3 {[%clk 0:00:07]}  Kg7 {[%clk 0:00:04]} 45. Qe5+ {[%clk 0:00:07]}  Qxe5 {[%clk 0:00:04]} 46. dxe5 {[%clk 0:00:08]}  Kf8 {[%clk 0:00:04]} 47. f4 {[%clk 0:00:09]}  Ke7 {[%clk 0:00:04]} 48. Kg2 {[%clk 0:00:09]}  Kd8 {[%clk 0:00:05]} 49. Kf3 {[%clk 0:00:09]}  Kc7 {[%clk 0:00:06]} 50. Ke4 {[%clk 0:00:10]}  Kc6 {[%clk 0:00:07]} 51. Kd4 {[%clk 0:00:10]}  Kb6 {[%clk 0:00:03]} 52. Kd5 {[%clk 0:00:09]}  Kc7 {[%clk 0:00:04]} 53. Ne4 {[%clk 0:00:07]}  Kxb7 {[%clk 0:00:03]} 54. Nd6+ {[%clk 0:00:08]}  Kc7 {[%clk 0:00:04]} 55. Nxf7 {[%clk 0:00:09]}  Kd7 {[%clk 0:00:04]} 56. Nh8 {[%clk 0:00:09]}  Nc6 {[%clk 0:00:03]} 57. Nxg6 {[%clk 0:00:09]}  Nb4+ {[%clk 0:00:04]} 58. Ke4 {[%clk 0:00:09]}  Ke6 {[%clk 0:00:03]} 59. f5+ {[%clk 0:00:09]}  Kf7 {[%clk 0:00:04]} 60. Nf4 {[%clk 0:00:10]}  Nc6 {[%clk 0:00:04]} 61. e6+ {[%clk 0:00:11]}  Kf6 {[%clk 0:00:04]} 62. Nxh5+ {[%clk 0:00:11]}  Ke7 {[%clk 0:00:05]} 63. g4 {[%clk 0:00:11]}  Kd6 {[%clk 0:00:04]} 64. Nf4 {[%clk 0:00:11]}  Ne5 {[%clk 0:00:05]} 65. g5 {[%clk 0:00:07]}  Ng4 {[%clk 0:00:04]} 66. h5 {[%clk 0:00:05]}  Ke7 {[%clk 0:00:04]} 67. h6 {[%clk 0:00:06]}  Kf8 {[%clk 0:00:03]} 68. Nd5 {[%clk 0:00:04]}  Nf2+ {[%clk 0:00:02]} 69. Kf4 {[%clk 0:00:04]}  Nd3+ {[%clk 0:00:02]} 70. Ke4 {[%clk 0:00:05]}  Nc5+ {[%clk 0:00:02]} 71. Ke5 {[%clk 0:00:05]}  Kg8 {[%clk 0:00:02]} 72. Ne7+ {[%clk 0:00:05]}  Kh7 {[%clk 0:00:02]} 73. Nd5 {[%clk 0:00:05]}  Nd3+ {[%clk 0:00:02]} 74. Kd6 {[%clk 0:00:04]}  Kg8 {[%clk 0:00:00]} 75. e7 {[%clk 0:00:05]} 1-0


[Site "https://www.chess.com"]